Workbook

Sheet Inicio
O1: 6
D2: Indicadores Sistema Eléctrico CCAA | I2: www.ree.es
I3: Fecha de actualización: | K3: 2023-04-04

Sheet Cuadro mando
A3: Principales Indicadores Madrid 2022
B7: RED DE TRANSPORTE1
I45: (1) km líneas de la Red de Transporte

Sheet Red_de_transporte
A3: Red de transporte Madrid 2022
B7: RED DE TRANSPORTE1 | H7: VARIACIONES DE LA RdT
B11: AÑO 2022 | D11: =datos_RdT!Q72 -> Madrid | E11: España | F11: % del total
B12: km circuitos 400 kV | D12: =datos_RdT!Q73 -> 992.6117087 | E12: =datos_RdT!V73 -> 22013.28 | F12: =D12*100/E12 -> 4.509149517
B13: km circuitos 220 kV | D13: =datos_RdT!Q74 -> 1186.993385 | E13: =datos_RdT!V74 -> 20189.147 | F13: =D13*100/E13 -> 5.879363726
B14: km circuitos <220 kV | D14: =datos_RdT!Q75 -> 0 | E14: =datos_RdT!V75 -> 2898.15 | F14: 0
B15: km circuitos | D15: =datos_RdT!Q76 -> 2179.605094 | E15: =datos_RdT!V76 -> 45100.577 | F15: 4.83276543
B16: Posiciones 400 kV | D16: =datos_RdT!Q78 -> 112 | E16: =datos_RdT!V78 -> 1628 | F16: =D16*100/E16 -> 6.87960688
B17: Posiciones 220 kV | D17: =datos_RdT!Q79 -> 551 | E17: =datos_RdT!V79 -> 3536 | F17: =D17*100/E17 -> 15.58257919
B18: Posiciones <220 kV | D18: =datos_RdT!Q80 -> 0 | E18: =datos_RdT!V80 -> 1170 | F18: 0
B19: Posiciones | D19: =datos_RdT!Q81 -> 663 | E19: =datos_RdT!V81 -> 6334 | F19: 10.46731923
B20: Transformadores2 (MVA) | D20: =datos_RdT!Q83 -> 11100 | E20: =datos_RdT!V83 -> 91175 | F20: 12.17438991
B22: (1) Incluye los activos de la red de transporte del resto de empresas.
B23: (2) No contempla desfasadores
B26: EVOLUCIÓN DE LA RdT | H26: % km LÍNEAS C.A. vs. KILÓMETROS TOTALES

Sheet AVISO LEGAL

Sheet datos_RdT (hidden)
B1: 2017
B2: CCAA | C2: Andalucía | D2: Aragón | E2: Asturias | F2: Baleares | G2: C. Valenciana | H2: Canarias | I2: Cantabria | J2: Castilla-La Mancha | K2: Castilla y León | L2: Cataluña | M2: Ceuta | N2: Extremadura | O2: Galicia | P2: La Rioja | Q2: Madrid | R2: Melilla | S2: Murcia | T2: Navarra | U2: País Vasco | V2: TOTAL | W2: MÓVILES | X2: PENINSULAR | Y2: NO PENINSULAR
B3: km líneas 400 kV | C3: 2774.14959 | D3: 1447.051699 | E3: 529.5022043 | F3: 0 | G3: 1073.171488 | H3: 0 | I3: 240.5107043 | J3: 2612.814496 | K3: 4501.088432 | L3: 2236.079333 | N3: 2285.508447 | O3: 1345.968287 | P3: 114.9490595 | Q3: 992.6117087 | S3: 708.1121371 | T3: 175.9700702 | U3: 697.3623434 | V3: =SUM(C3:U3) -> 21734.85 | X3: =V3-Y3 -> 21734.85 | Y3: =F3+H3 -> 0
B4: km líneas 220 kV | C4: 3194.421495 | D4: 1858.520817 | E4: 431.5110202 | F4: 432.214 | G4: 1306.97126 | H4: 220.243 | I4: 324.1211061 | J4: 1524.543979 | K4: 3258.039074 | L4: 2529.985294 | N4: 854.5408674 | O4: 1325.176 | P4: 142.308 | Q4: 1186.787385 | S4: 123.86974 | T4: 318.8290202 | U4: 661.8999412 | V4: =SUM(C4:U4) -> 19693.982 | X4: =V4-Y4 -> 19041.525 | Y4: =F4+H4 -> 652.457
B5: km líneas <220 kV | F5: 1377.005 | H5: 1134.854 | L5: 39.44 | N5: 23 | O5: 12.3 | V5: 2586.599 | X5: 74.74 | Y5: 2511.859
B6: Total km líneas | C6: =SUM(C3:C5) -> 5968.571084 | D6: =SUM(D3:D5) -> 3305.572516 | E6: 961.0132245 | F6: 1809.219 | G6: 2380.142748 | H6: 1355.097 | I6: 564.6318104 | J6: 4137.358476 | K6: 7759.127506 | L6: 4805.504627 | M6: 0 | N6: 3163.049314 | O6: 2683.444287 | P6: 257.2570595 | Q6: 2179.399094 | R6: 0 | S6: 831.9818771 | T6: 494.7990904 | U6: 1359.262285 | V6: 44015.431 | X6: =SUM(X3:X5) -> 40851.115 | Y6: 3164.316
B7: =CONCATENATE("Δ" & $B$1 & "/" & $B$1-1) -> Δ2017/2016 | C7: 0 | D7: 0.293698898 | E7: 0 | F7: 0.4597601585 | G7: 0.6414024684 | H7: 0.06882470009 | I7: 0 | J7: 0.8354702501 | K7: 0.6167149558 | L7: 0.01392347318 | N7: 0 | O7: 0 | P7: 0 | Q7: 1.238121277 | S7: 0 | T7: 0 | U7: 0.008387605774 | V7: 0.3267133699 | X7: 0.3294054809 | Y7: 0.2919713582
B8: Posiciones 400 kV | C8: 195 | D8: 100 | E8: 48 | G8: 171 | I8: 15 | J8: 113 | K8: 233 | L8: 141 | N8: 103 | O8: 71 | P8: 8 | Q8: 104 | S8: 69 | T8: 28 | U8: 80 | V8: =SUM(C8:U8)+W8 -> 1479 | X8: =V8-Y8 -> 1479 | Y8: =F8+H8 -> 0
B9: Posiciones 220 kV | C9: 438 | D9: 214 | E9: 45 | F9: 115 | G9: 310 | H9: 55 | I9: 50 | J9: 137 | K9: 243 | L9: 599 | N9: 88 | O9: 222 | P9: 30 | Q9: 526 | S9: 48 | T9: 50 | U9: 150 | V9: =SUM(C9:U9)+W9 -> 3327 | W9: 7 | X9: =V9-Y9 -> 3157 | Y9: =F9+H9 -> 170 | AB9: =3005+101 -> 3106
B10: Posiciones <220 kV | F10: 541 | H10: 440 | L10: 3 | O10: 1 | V10: =SUM(C10:U10)+W10 -> 985 | X10: =V10-Y10 -> 4 | Y10: =F10+H10 -> 981 | AB10: =904+7 -> 911
B11: Total posiciones | C11: =SUM(C8:C10) -> 633 | D11: 314 | E11: 93 | F11: 656 | G11: 481 | H11: 495 | I11: 65 | J11: 250 | K11: 476 | L11: 743 | M11: 0 | N11: 191 | O11: 294 | P11: 38 | Q11: 630 | R11: 0 | S11: 117 | T11: 78 | U11: 230 | V11: =SUM(V8:V10) -> 5791 | W11: 7 | X11: =SUM(X8:X10) -> 4640 | Y11: 1151 | AB11: =521+7 -> 528
B12: =CONCATENATE("Δ" & $B$1 & "/" & $B$1-1) -> Δ2017/2016 | C12: 0 | D12: 0.641025641 | E12: 0 | F12: 0.9230769231 | G12: 3.663793103 | H12: 11.23595506 | I12: 0 | J12: 0.8064516129 | K12: 3.03030303 | L12: 1.088435374 | N12: 0 | O12: 0 | P12: 0 | Q12: 0.1589825119 | S12: 0 | T12: 1.298701299 | U12: 0.8771929825 | V12: 1.810829817 | W12: 0 | X12: 1.02329632 | Y12: 5.114155251
B13: Transformadores | C13: 14420 | D13: 4574 | E13: 1300 | F13: 3463 | G13: 8950 | H13: 2810 | I13: 2100 | J13: 1200 | K13: 6131 | L13: 9800 | N13: 2800 | O13: 5700 | P13: 600 | Q13: 12370 | S13: 3450 | T13: 1600 | U13: 4800 | V13: =SUM(C13:U13)+W13 -> 86968 | W13: 900 | X13: =V13-Y13 -> 80695 | Y13: =F13+H13 -> 6273
B14: =CONCATENATE("Δ" & $B$1 & "/" & $B$1-1) -> Δ2017/2016 | C14: 0 | D14: 0 | E14: 0 | F14: 0 | G14: 0 | H14: 24.88888889 | I14: 0 | J14: 0 | K14: 0 | L14: 0 | N14: 0 | O14: 0 | P14: 0 | Q14: 0 | S14: 0 | T14: 0 | U14: 0 | V14: 0.64808814 | W14: 0 | X14: 0 | Y14: 9.802205496
B15: 2018
B16: CCAA | C16: Andalucía | D16: Aragón | E16: Asturias | F16: Baleares | G16: C. Valenciana | H16: Canarias | I16: Cantabria | J16: Castilla-La Mancha | K16: Castilla y León | L16: Cataluña | M16: Ceuta | N16: Extremadura | O16: Galicia | P16: La Rioja | Q16: Madrid | R16: Melilla | S16: Murcia | T16: Navarra | U16: País Vasco | V16: TOTAL | W16: MÓVILES | X16: PENINSULAR | Y16: NO PENINSULAR
B17: km líneas 400 kV | C17: 2774.14959 | D17: 1447.051699 | E17: 529.5022043 | F17: 0 | G17: 1073.171488 | H17: 0 | I17: 240.5107043 | J17: 2612.814496 | K17: 4501.848432 | L17: 2237.079333 | N17: 2285.508447 | O17: 1345.968287 | P17: 114.9490595 | Q17: 992.6117087 | S17: 708.1121371 | T17: 175.9700702 | U17: 697.3623434 | V17: =SUM(C17:U17) -> 21736.61 | X17: =V17-Y17 -> 21736.61 | Y17: =F17+H17 -> 0
B18: km líneas 220 kV | C18: 3209.687495 | D18: 1858.520817 | E18: 431.5110202 | F18: 432.214 | G18: 1333.51526 | H18: 239.145 | I18: 324.1211061 | J18: 1524.543979 | K18: 3287.754074 | L18: 2533.963294 | N18: 854.5408674 | O18: 1325.176 | P18: 142.308 | Q18: 1186.787385 | S18: 123.86974 | T18: 318.8290202 | U18: 661.8999412 | V18: =SUM(C18:U18) -> 19788.387 | X18: =V18-Y18 -> 19117.028 | Y18: =F18+H18 -> 671.359
B19: km líneas <220 kV | F19: 1421.728 | H19: 1242.691 | L19: 39.44 | N19: 23 | O19: 12.3 | V19: 2739.159 | X19: 74.74 | Y19: 2664.419
B20: Total km líneas | C20: =SUM(C17:C19) -> 5983.837084 | D20: =SUM(D17:D19) -> 3305.572516 | E20: 961.0132245 | F20: 1853.942 | G20: 2406.686748 | H20: 1481.836 | I20: 564.6318104 | J20: 4137.358476 | K20: 7789.602506 | L20: 4810.482627 | M20: 0 | N20: 3163.049314 | O20: 2683.444287 | P20: 257.2570595 | Q20: 2179.399094 | R20: 0 | S20: 831.9818771 | T20: 494.7990904 | U20: 1359.262285 | V20: =SUM(V17:V19) -> 44264.156 | X20: =SUM(X17:X19) -> 40928.378 | Y20: =SUM(Y17:Y19) -> 3335.778
B21: =CONCATENATE("Δ" & $B$15 & "/" & $B$15-1) -> Δ2018/2017 | C21: =(C20/C6-1)*100 -> 0.2557731119 | D21: =(D20/D6-1)*100 -> 0 | E21: 0 | F21: 2.471950604 | G21: 1.115227228 | H21: 9.352762201 | I21: 0 | J21: 0 | K21: 0.3927632324 | L21: 0.1035895371 | N21: =(N20/N6-1)*100 -> 0 | O21: 2.220446049e-14 | P21: 0 | Q21: 0 | S21: =(S20/S6-1)*100 -> 0 | T21: 0 | U21: 0 | V21: =(V20/V6-1)*100 -> 0.5650859127 | X21: =(X20/X6-1)*100 -> 0.1891331485 | Y21: =(Y20/Y6-1)*100 -> 5.418611795
B22: Posiciones 400 kV | C22: 197 | D22: 100 | E22: 49 | G22: 171 | I22: 15 | J22: 114 | K22: 242 | L22: 149 | M22: 0 | N22: 104 | O22: 71 | P22: 8 | Q22: 104 | S22: 69 | T22: 28 | U22: 80 | V22: =SUM(C22:U22) -> 1501 | X22: =V22-Y22 -> 1501 | Y22: =F22+H22 -> 0
B23: Posiciones 220 kV | C23: 449 | D23: 216 | E23: 45 | F23: 116 | G23: 310 | H23: 69 | I23: 50 | J23: 137 | K23: 248 | L23: 612 | M23: 0 | N23: 88 | O23: 222 | P23: 30 | Q23: 526 | S23: 48 | T23: 50 | U23: 151 | V23: =SUM(C23:U23)+W23 -> 3374 | W23: 7 | X23: =V23-Y23 -> 3189 | Y23: =F23+H23 -> 185
B24: Posiciones <220 kV | F24: 541 | H24: 495 | L24: 3 | O24: 1 | V24: 1040 | X24: =V24-Y24 -> 4 | Y24: =F24+H24 -> 1036
B25: Total posiciones | C25: =SUM(C22:C24) -> 646 | D25: 316 | E25: 94 | F25: 657 | G25: 481 | H25: 564 | I25: 65 | J25: 251 | K25: 490 | L25: 764 | M25: 0 | N25: 192 | O25: 294 | P25: 38 | Q25: 630 | R25: 0 | S25: 117 | T25: 78 | U25: 231 | V25: =SUM(V22:V24) -> 5915 | W25: 7 | X25: =SUM(X22:X24) -> 4694 | Y25: =SUM(Y22:Y24) -> 1221
B26: =CONCATENATE("Δ" & $B$15 & "/" & $B$15-1) -> Δ2018/2017 | C26: =(C25/C11-1)*100 -> 2.05371248 | D26: =(D25/D11-1)*100 -> 0.6369426752 | E26: 1.075268817 | F26: 0.1524390244 | G26: 0 | H26: 13.93939394 | I26: 0 | J26: 0.4 | K26: 2.941176471 | L26: 2.826379542 | N26: =(N25/N11-1)*100 -> 0.5235602094 | O26: 0 | P26: 0 | Q26: 0 | S26: =(S25/S11-1)*100 -> 0 | T26: 0 | U26: 0.4347826087 | V26: =(V25/V11-1)*100 -> 2.141253669 | W26: 0 | X26: 1.163793103 | Y26: 6.081668115
B27: Transformadores | C27: 14420 | D27: 5056 | E27: 1300 | F27: 3463 | G27: 8950 | H27: 3310 | I27: 2100 | J27: 1200 | K27: 6131 | L27: 11500 | N27: 2800 | O27: 5700 | P27: 600 | Q27: 12370 | S27: 3450 | T27: 1600 | U27: 5000 | V27: =SUM(C27:U27)+W27 -> 89850 | W27: 900 | X27: =V27-Y27 -> 83077 | Y27: =F27+H27 -> 6773
B28: =CONCATENATE("Δ" & $B$15 & "/" & $B$15-1) -> Δ2018/2017 | C28: =(C27/C13-1)*100 -> 0 | D28: =(D27/D13-1)*100 -> 10.53782247 | E28: 0 | F28: 0 | G28: 0 | H28: 17.79359431 | I28: 0 | J28: 0 | K28: 0 | L28: 17.34693878 | N28: =(N27/N13-1)*100 -> 0 | O28: 0 | P28: 0 | Q28: 0 | S28: =(S27/S13-1)*100 -> 0 | T28: 0 | U28: 4.166666667 | V28: =(V27/V13-1)*100 -> 3.31386257 | W28: 0 | X28: 2.951855753 | Y28: 7.970667942
B29: 2019
B30: CCAA | C30: Andalucía | D30: Aragón | E30: Asturias | F30: Baleares | G30: C. Valenciana | H30: Canarias | I30: Cantabria | J30: Castilla-La Mancha | K30: Castilla y León | L30: Cataluña | M30: Ceuta | N30: Extremadura | O30: Galicia | P30: La Rioja | Q30: Madrid | R30: Melilla | S30: Murcia | T30: Navarra | U30: País Vasco | V30: TOTAL | W30: MÓVILES | X30: PENINSULAR | Y30: NO PENINSULAR
B31: km líneas 400 kV | C31: 2774.14959 | D31: 1447.051699 | E31: 529.5022043 | F31: 0 | G31: 1073.171488 | H31: 0 | I31: 240.5107043 | J31: 2612.814496 | K31: 4511.660432 | L31: 2237.079333 | N31: 2285.508447 | O31: 1345.968287 | P31: 114.9490595 | Q31: 992.6117087 | S31: 708.1121371 | T31: 175.9700702 | U31: 698.9563434 | V31: =SUM(C31:U31) -> 21748.016 | X31: =V31-Y31 -> 21748.016 | Y31: =F31+H31 -> 0
B32: km líneas 220 kV | C32: 3258.393495 | D32: 1876.547817 | E32: 431.5110202 | F32: 447.6638 | G32: 1334.47326 | H32: 239.145 | I32: 324.1211061 | J32: 1524.543979 | K32: 3317.344074 | L32: 2534.918294 | N32: 854.9298674 | O32: 1328.496 | P32: 142.308 | Q32: 1186.937385 | S32: 123.86974 | T32: 318.8290202 | U32: 661.8999412 | V32: =SUM(C32:U32) -> 19905.9318 | X32: =V32-Y32 -> 19219.123 | Y32: =F32+H32 -> 686.8088
B33: km líneas <220 kV | F33: 1425.6576 | H33: 1310.047 | L33: 39.44 | N33: 5.04 | O33: 12.3 | V33: =SUM(C33:U33) -> 2792.4846 | X33: 56.78 | Y33: 2735.7046
B34: Total km líneas | C34: =SUM(C31:C33) -> 6032.543084 | D34: =SUM(D31:D33) -> 3323.599516 | E34: 961.0132245 | F34: 1873.3214 | G34: 2407.644748 | H34: 1549.192 | I34: 564.6318104 | J34: 4137.358476 | K34: 7829.004506 | L34: 4811.437627 | M34: 0 | N34: 3145.478314 | O34: 2686.764287 | P34: 257.2570595 | Q34: 2179.549094 | R34: 0 | S34: 831.9818771 | T34: 494.7990904 | U34: 1360.856285 | V34: =SUM(V31:V33) -> 44446.4324 | W34: =SUM(W31:W33) -> 0 | X34: 41023.919 | Y34: 3422.5134
B35: =CONCATENATE("Δ" & $B$29 & "/" & $B$29-1) -> Δ2019/2018 | C35: =(C34/C20-1)*100 -> 0.813959326 | D35: =(D34/D20-1)*100 -> 0.5453518237 | E35: 0 | F35: 1.045307782 | G35: 0.03980576203 | H35: 4.545442276 | I35: 0 | J35: 0 | K35: 0.5058281211 | L35: 0.01985247789 | N35: =(N34/N20-1)*100 -> -0.5555082534 | O35: 0.1237215923 | P35: 0 | Q35: 0.006882631107 | S35: =(S34/S20-1)*100 -> 0 | T35: 0 | U35: 0.1172694938 | V35: =(V34/V20-1)*100 -> 0.4117923315 | X35: 0.2334346111 | Y35: 2.600155046
B36: Posiciones 400 kV | C36: 199 | D36: 101 | E36: 49 | F36: 0 | G36: 184 | H36: 0 | I36: 15 | J36: 116 | K36: 251 | L36: 150 | M36: 0 | N36: 107 | O36: 73 | P36: 8 | Q36: 106 | R36: 0 | S36: 71 | T36: 28 | U36: 80 | V36: =SUM(C36:U36)+W36 -> 1538 | X36: =V36-Y36 -> 1538 | Y36: =F36+H36 -> 0
B37: Posiciones 220 kV | C37: 465 | D37: 223 | E37: 45 | F37: 124 | G37: 324 | H37: 72 | I37: 50 | J37: 140 | K37: 254 | L37: 616 | M37: 0 | N37: 91 | O37: 233 | P37: 30 | Q37: 530 | R37: 0 | S37: 48 | T37: 50 | U37: 151 | V37: =SUM(C37:U37)+W37 -> 3453 | W37: 7 | X37: =V37-Y37 -> 3257 | Y37: =F37+H37 -> 196
B38: Posiciones <220 kV | F38: 567 | H38: 509 | L38: 3 | O38: 1 | V38: 1080 | X38: =V38-Y38 -> 4 | Y38: =F38+H38 -> 1076
B39: Total posiciones | C39: =SUM(C36:C38) -> 664 | D39: 324 | E39: 94 | F39: =SUM(F36:F38) -> 691 | G39: =SUM(G36:G38) -> 508 | H39: 581 | I39: 65 | J39: 256 | K39: 505 | L39: 769 | M39: 0 | N39: 198 | O39: 307 | P39: 38 | Q39: 636 | R39: 0 | S39: 119 | T39: 78 | U39: 231 | V39: =SUM(V36:V38) -> 6071 | W39: 7 | X39: =SUM(X36:X38) -> 4799 | Y39: =SUM(Y36:Y38) -> 1272
B40: =CONCATENATE("Δ" & $B$29 & "/" & $B$29-1) -> Δ2019/2018 | C40: =(C39/C25-1)*100 -> 2.786377709 | D40: =(D39/D25-1)*100 -> 2.53164557 | E40: 0 | F40: 5.175038052 | G40: 5.613305613 | H40: 3.014184397 | I40: 0 | J40: 1.992031873 | K40: 3.06122449 | L40: 0.6544502618 | N40: =(N39/N25-1)*100 -> 3.125 | O40: 4.421768707 | P40: 0 | Q40: 0.9523809524 | S40: =(S39/S25-1)*100 -> 1.709401709 | T40: 0 | U40: 0 | V40: =(V39/V25-1)*100 -> 2.637362637 | W40: 0 | X40: =(X39/X25-1)*100 -> 2.236898168 | Y40: =(Y39/Y25-1)*100 -> 4.176904177
B41: Transformadores | C41: 15020 | D41: 5056 | E41: 1300 | F41: 3838 | G41: 8950 | H41: 3470 | I41: 2100 | J41: 1200 | K41: 6131 | L41: 11500 | N41: 2800 | O41: 5700 | P41: 600 | Q41: 11100 | S41: 3450 | T41: 1600 | U41: 5100 | V41: =SUM(C41:U41)+W41 -> 89815 | W41: 900 | X41: =V41-Y41 -> 82507 | Y41: =F41+H41 -> 7308
B42: =CONCATENATE("Δ" & $B$29 & "/" & $B$29-1) -> Δ2019/2018 | C42: =(C41/C27-1)*100 -> 4.160887656 | D42: =(D41/D27-1)*100 -> 0 | E42: 0 | F42: 10.82876119 | G42: 0 | H42: 4.833836858 | I42: 0 | J42: 0 | K42: 0 | L42: 0 | N42: =(N41/N27-1)*100 -> 0 | O42: 0 | P42: 0 | Q42: -10.26677445 | S42: =(S41/S27-1)*100 -> 0 | T42: 0 | U42: 2 | V42: =(V41/V27-1)*100 -> -0.03895381191 | W42: 0 | X42: -0.6861104758 | Y42: 7.899010778
B43: 2020
B44: CCAA | C44: Andalucía | D44: Aragón | E44: Asturias | F44: Baleares | G44: C. Valenciana | H44: Canarias | I44: Cantabria | J44: Castilla-La Mancha | K44: Castilla y León | L44: Cataluña | M44: Ceuta | N44: Extremadura | O44: Galicia | P44: La Rioja | Q44: Madrid | R44: Melilla | S44: Murcia | T44: Navarra | U44: País Vasco | V44: TOTAL | W44: MÓVILES | X44: PENINSULAR | Y44: NO PENINSULAR
B45: km líneas 400 kV | C45: 2774.14959 | D45: 1447.051699 | E45: 539.0682043 | G45: 1073.171488 | I45: 240.5107043 | J45: 2612.814496 | K45: 4511.660432 | L45: 2237.079333 | N45: 2291.070447 | O45: 1346.726287 | P45: 114.9490595 | Q45: 992.6117087 | S45: 708.1121371 | T45: 175.9700702 | U45: 698.9563434 | V45: =SUM(C45:U45) -> 21763.902 | X45: =V45-Y45 -> 21763.902 | Y45: =F45+H45 -> 0
B46: km líneas 220 kV | C46: 3258.615495 | D46: 1885.140817 | E46: 432.2110202 | F46: 447.664 | G46: 1334.47326 | H46: 239.145 | I46: 324.1211061 | J46: 1528.303979 | K46: 3317.344074 | L46: 2546.688294 | N46: 859.3478674 | O46: 1332.484 | P46: 142.308 | Q46: 1186.993385 | S46: 123.86974 | T46: 318.8290202 | U46: 661.8999412 | V46: =SUM(C46:U46) -> 19939.439 | X46: =V46-Y46 -> 19252.63 | Y46: =F46+H46 -> 686.809
B47: km líneas <220 kV | C47: 0 | D47: 0 | E47: 0 | F47: 1481.116 | G47: 0 | H47: 1321.842 | I47: 0 | J47: 0 | K47: 0 | L47: 39.44 | M47: 0 | N47: 5.04 | O47: 12.3 | P47: 0 | Q47: 0 | R47: 0 | S47: 0 | T47: 0 | U47: 0 | V47: =SUM(C47:U47) -> 2859.738 | X47: 56.78 | Y47: 2802.958
B48: Total km líneas | C48: =SUM(C45:C47) -> 6032.765084 | D48: =SUM(D45:D47) -> 3332.192516 | E48: 971.2792245 | F48: 1928.78 | G48: 2407.644748 | H48: 1560.987 | I48: 564.6318104 | J48: 4141.118476 | K48: 7829.004506 | L48: 4823.207627 | M48: 0 | N48: 3155.458314 | O48: 2691.510287 | P48: 257.2570595 | Q48: 2179.605094 | R48: 0 | S48: 831.9818771 | T48: 494.7990904 | U48: 1360.856285 | V48: =SUM(V45:V47) -> 44563.079 | X48: =SUM(X45:X47) -> 41073.312 | Y48: =SUM(Y45:Y47) -> 3489.767
B49: =CONCATENATE("Δ" & $B$43 & "/" & $B$43-1) -> Δ2020/2019 | C49: 0.2666036915 | D49: 0.5306457033 | E49: 0 | F49: 2.44402976 | G49: 1.090233197 | H49: 8.534318437 | I49: 0 | J49: 0 | K49: 0.3878701014 | L49: 0.105236572 | N49: 0 | O49: 0 | P49: 0 | Q49: 0 | S49: 0 | T49: 0 | U49: 0 | V49: =(V48/V34-1)*100 -> 0.2624431112 | X49: 0.1204004912 | Y49: 1.965035404
B50: Posiciones 400 kV | C50: 194 | D50: 101 | E50: 55 | G50: 181 | I50: 15 | J50: 119 | K50: 247 | L50: 147 | N50: 113 | O50: 72 | P50: 8 | Q50: 109 | S50: 74 | T50: 30 | U50: 84 | V50: =SUM(C50:U50)+W50 -> 1549 | X50: =V50-Y50 -> 1549 | Y50: =F50+H50 -> 0
B51: Posiciones 220 kV | C51: 460 | D51: 222 | E51: 44 | F51: 125 | G51: 323 | H51: 77 | I51: 48 | J51: 142 | K51: 251 | L51: 600 | M51: 0 | N51: 88 | O51: 223 | P51: 29 | Q51: 551 | R51: 0 | S51: 44 | T51: 50 | U51: 149 | V51: =SUM(C51:U51)+W51 -> 3433 | W51: 7 | X51: =V51-Y51 -> 3231 | Y51: =F51+H51 -> 202
B52: Posiciones <220 kV | F52: 559 | H52: 546 | L52: 3 | O52: 1 | V52: =SUM(C52:U52)+W52 -> 1109 | X52: =V52-Y52 -> 4 | Y52: =F52+H52 -> 1105
B53: Total posiciones | C53: =SUM(C50:C52) -> 654 | D53: =SUM(D50:D52) -> 323 | E53: 99 | F53: =SUM(F50:F52) -> 684 | G53: =SUM(G50:G52) -> 504 | H53: 623 | I53: 63 | J53: 261 | K53: 498 | L53: 750 | M53: 0 | N53: 201 | O53: 296 | P53: 37 | Q53: 660 | R53: 0 | S53: 118 | T53: 80 | U53: 233 | V53: =SUM(V50:V52) -> 6091 | W53: 7 | X53: =SUM(X50:X52) -> 4784 | Y53: =SUM(Y50:Y52) -> 1307
B54: =CONCATENATE("Δ" & $B$43 & "/" & $B$43-1) -> Δ2020/2019 | C54: =(C53/C39-1)*100 -> -1.506024096 | D54: =(D53/D39-1)*100 -> -0.3086419753 | E54: 5.319148936 | F54: -1.013024602 | G54: -0.7874015748 | H54: 7.228915663 | I54: -3.076923077 | J54: 1.953125 | K54: -1.386138614 | L54: -2.470741222 | N54: =(N53/N39-1)*100 -> 1.515151515 | O54: -3.583061889 | P54: -2.631578947 | Q54: 3.773584906 | S54: =(S53/S39-1)*100 -> -0.8403361345 | T54: 2.564102564 | U54: 0.8658008658 | V54: =(V53/V39-1)*100 -> 0.3294350189 | W54: 0 | X54: 0 | Y54: 0
B55: Transformadores | C55: 15020 | D55: 5056 | E55: 1300 | F55: 3838 | G55: 8950 | H55: 3630 | I55: 2100 | J55: 1200 | K55: 6131 | L55: 11500 | N55: 2800 | O55: 5700 | P55: 600 | Q55: 11100 | S55: 3450 | T55: 1600 | U55: 5100 | V55: =SUM(C55:U55)+W55 -> 89975 | W55: 900 | X55: =V55-Y55 -> 82507 | Y55: =F55+H55 -> 7468
B56: =CONCATENATE("Δ" & $B$43 & "/" & $B$43-1) -> Δ2020/2019 | C56: =(C55/C41-1)*100 -> 0 | D56: =(D55/D41-1)*100 -> 0 | E56: 0 | F56: 0 | G56: 0 | H56: 4.610951009 | I56: 0 | J56: 0 | K56: 0 | L56: 0 | N56: =(N55/N41-1)*100 -> 0 | O56: 0 | P56: 0 | Q56: 0 | S56: =(S55/S41-1)*100 -> 0 | T56: 0 | U56: 0 | V56: =(V55/V41-1)*100 -> 0.1781439626 | W56: 0 | X56: 0 | Y56: 2.1893815
B57: 2021
B58: CCAA | C58: Andalucía | D58: Aragón | E58: Asturias | F58: Baleares | G58: C. Valenciana | H58: Canarias | I58: Cantabria | J58: Castilla-La Mancha | K58: Castilla y León | L58: Cataluña | M58: Ceuta | N58: Extremadura | O58: Galicia | P58: La Rioja | Q58: Madrid | R58: Melilla | S58: Murcia | T58: Navarra | U58: País Vasco | V58: TOTAL | W58: MÓVILES | X58: PENINSULAR | Y58: NO PENINSULAR
B59: km líneas 400 kV | C59: 2774.14959 | D59: =1447.05169905958+0.986 -> 1448.037699 | E59: 539.0682043 | G59: =1073.17148845086+1.266 -> 1074.437488 | I59: 240.5107043 | J59: 2612.814496 | K59: 4511.660432 | L59: 2237.079333 | N59: =2291.07044693153+2.228 -> 2293.298447 | O59: 1346.726287 | P59: 114.9490595 | Q59: 992.6117087 | S59: 708.1121371 | T59: 175.9700702 | U59: 698.9563434 | V59: =SUM(C59:U59) -> 21768.382 | X59: =V59-Y59 -> 21768.382 | Y59: =F59+H59 -> 0
B60: km líneas 220 kV | C60: =3258.6154949495+7.652 -> 3266.267495 | D60: =1885.140817033+19.227 -> 1904.367817 | E60: =432.21102020202+0.338 -> 432.5490202 | F60: 447.664 | G60: =1334.47326+15.913 -> 1350.38626 | H60: =239.145+1.104 -> 240.249 | I60: 324.1211061 | J60: 1528.303979 | K60: =3317.34407393473+31.604 -> 3348.948074 | L60: 2546.688294 | N60: =859.3478674242+49.828 -> 909.1758674 | O60: =1332.484+83.538 -> 1416.022 | P60: 142.308 | Q60: 1186.993385 | S60: 123.86974 | T60: 318.8290202 | U60: =661.899941216782+0.08 -> 661.9799412 | V60: =SUM(C60:U60) -> 20148.723 | X60: =V60-Y60 -> 19460.81 | Y60: =F60+H60 -> 687.913
B61: km líneas <220 kV | F61: 1481.116 | H61: =1321.842+16.154 -> 1337.996 | I61: 0 | J61: 0 | K61: 0 | L61: 39.44 | N61: =5.04+3.01 -> 8.05 | O61: 12.3 | V61: 2878.902 | X61: 59.79 | Y61: 2819.112
B62: Total km líneas | C62: =SUM(C59:C61) -> 6040.417084 | D62: 3352.405516 | E62: 971.6172245 | F62: 1928.78 | G62: 2424.823748 | H62: 1578.245 | I62: 564.6318104 | J62: 4141.118476 | K62: 7860.608506 | L62: 4823.207627 | M62: 0 | N62: 3210.524314 | O62: 2775.048287 | P62: 257.2570595 | Q62: 2179.605094 | R62: 0 | S62: 831.9818771 | T62: 494.7990904 | U62: 1360.936285 | V62: =SUM(V59:V61) -> 44796.007 | X62: =SUM(X59:X61) -> 41288.982 | Y62: =SUM(Y59:Y61) -> 3507.025
B63: =CONCATENATE("Δ" & $B$57 & "/" & $B$57-1) -> Δ2021/2020 | C63: =(C62/C48-1)*100 -> 0.1268406758 | D63: =(D62/D48-1)*100 -> 0.6065976051 | E63: 0.0347994677 | F63: 0 | G63: 0.7135188865 | H63: 1.105582558 | I63: 0 | J63: 0 | K63: 0.4036783984 | L63: 0 | N63: =(N62/N48-1)*100 -> 1.745103073 | O63: 3.103759268 | P63: 0 | Q63: 0 | S63: =(S62/S48-1)*100 -> 0 | T63: 0 | U63: 0.005878651618 | V63: 0.3352935099 | X63: 0.3386428746 | Y63: 0.2921503343
B64: Posiciones 400 kV | C64: =194+3 -> 197 | D64: =101+7 -> 108 | E64: 55 | G64: =181+6 -> 187 | I64: 15 | J64: =119+4 -> 123 | K64: 247 | L64: 147 | N64: =113+11 -> 124 | O64: =72+3 -> 75 | P64: 8 | Q64: 109 | S64: =74+2 -> 76 | T64: 30 | U64: =84+6 -> 90 | V64: =SUM(C64:U64)+W64 -> 1591 | X64: =V64-Y64 -> 1591 | Y64: =F64+H64 -> 0
B65: Posiciones 220 kV | C65: =460+13 -> 473 | D65: =222+1 -> 223 | E65: 44 | F65: 125 | G65: 323 | H65: =77+6 -> 83 | I65: =48+1 -> 49 | J65: =142+2 -> 144 | K65: =251+1 -> 252 | L65: =600+5 -> 605 | M65: 0 | N65: =88+15 -> 103 | O65: =223+12 -> 235 | P65: 29 | Q65: 551 | R65: 0 | S65: 44 | T65: =50+1 -> 51 | U65: 149 | V65: =SUM(C65:U65)+W65 -> 3490 | W65: 7 | X65: =V65-Y65 -> 3282 | Y65: =F65+H65 -> 208
B66: Posiciones <220 kV | F66: =559+9 -> 568 | H66: =546+24 -> 570 | L66: 3 | N66: 2 | O66: 1 | V66: =SUM(C66:U66)+W66 -> 1144 | X66: =V66-Y66 -> 6 | Y66: =F66+H66 -> 1138
B67: Total posiciones | C67: =SUM(C64:C66) -> 670 | D67: =SUM(D64:D66) -> 331 | E67: 99 | F67: 693 | G67: 510 | H67: 653 | I67: 64 | J67: 267 | K67: 499 | L67: 755 | M67: 0 | N67: 229 | O67: 311 | P67: 37 | Q67: 660 | R67: 0 | S67: 120 | T67: 81 | U67: 239 | V67: =SUM(V64:V66) -> 6225 | W67: =SUM(W64:W66) -> 7 | X67: =SUM(X64:X66) -> 4879 | Y67: =SUM(Y64:Y66) -> 1346
B68: =CONCATENATE("Δ" & $B$57 & "/" & $B$57-1) -> Δ2021/2020 | C68: =(C67/C53-1)*100 -> 2.44648318 | D68: =(D67/D53-1)*100 -> 2.476780186 | E68: 0 | F68: 1.315789474 | G68: 1.19047619 | H68: 4.81540931 | I68: 1.587301587 | J68: 2.298850575 | K68: 0.2008032129 | L68: 0.6666666667 | N68: =(N67/N53-1)*100 -> 13.93034826 | O68: 5.067567568 | P68: 0 | Q68: 0 | S68: =(S67/S53-1)*100 -> 1.694915254 | T68: 1.25 | U68: 2.575107296 | V68: =(V67/V53-1)*100 -> 2.199967165 | W68: 0 | X68: =(X67/X53-1)*100 -> 1.985785953 | Y68: =(Y67/Y53-1)*100 -> 2.98393267
B69: Transformadores | C69: 15020 | D69: 5056 | E69: 1300 | F69: 3838 | G69: 8950 | H69: 3880 | I69: 2100 | J69: 1200 | K69: 6131 | L69: 11500 | N69: 3025 | O69: 5700 | P69: 600 | Q69: 11100 | S69: 3450 | T69: 1600 | U69: 5100 | V69: =SUM(C69:U69)+W69 -> 90450 | W69: 900 | X69: =V69-Y69 -> 82732 | Y69: =F69+H69 -> 7718
B70: =CONCATENATE("Δ" & $B$57 & "/" & $B$57-1) -> Δ2021/2020 | C70: =(C69/C55-1)*100 -> 0 | D70: =(D69/D55-1)*100 -> 0 | E70: 0 | F70: 0 | G70: 0 | H70: 6.887052342 | I70: 0 | J70: 0 | K70: 0 | L70: 0 | N70: 8.035714286 | O70: 0 | P70: 0 | Q70: 0 | S70: 0 | T70: 0 | U70: 0 | V70: 0.5279244235 | W70: 0 | X70: 0.2727041342 | Y70: 3.347616497
B71: 2022
B72: CCAA | C72: Andalucía | D72: Aragón | E72: Asturias | F72: Baleares | G72: C. Valenciana | H72: Canarias | I72: Cantabria | J72: Castilla-La Mancha | K72: Castilla y León | L72: Cataluña | M72: Ceuta | N72: Extremadura | O72: Galicia | P72: La Rioja | Q72: Madrid | R72: Melilla | S72: Murcia | T72: Navarra | U72: País Vasco | V72: TOTAL | W72: MÓVILES | X72: PENINSULAR | Y72: NO PENINSULAR
B73: km líneas 400 kV | C73: =2774.14958951773+244.898 -> 3019.04759 | D73: 1448.037699 | E73: 539.0682043 | G73: 1074.437488 | I73: 240.5107043 | J73: 2612.814496 | K73: 4511.660432 | L73: 2237.079333 | N73: 2293.298447 | O73: 1346.726287 | P73: 114.9490595 | Q73: 992.6117087 | S73: 708.1121371 | T73: 175.9700702 | U73: 698.9563434 | V73: =SUM(C73:U73) -> 22013.28 | X73: =V73-Y73 -> 22013.28 | Y73: =F73+H73 -> 0
B74: km líneas 220 kV | C74: =3266.2674949495+2.697 -> 3268.964495 | D74: 1904.367817 | E74: 432.5490202 | F74: 447.664 | G74: =1350.38626+9.926 -> 1360.31226 | H74: =240.249+19.28 -> 259.529 | I74: =324.121106060606+8.371 -> 332.4921061 | J74: =1528.30397949762+0.15 -> 1528.453979 | K74: 3348.948074 | L74: 2546.688294 | N74: 909.1758674 | O74: 1416.022 | P74: 142.308 | Q74: 1186.993385 | S74: 123.86974 | T74: 318.8290202 | U74: 661.9799412 | V74: =SUM(C74:U74) -> 20189.147 | X74: =V74-Y74 -> 19481.954 | Y74: =F74+H74 -> 707.193
B75: km líneas <220 kV | F75: =1481.116+0.318 -> 1481.434 | H75: =1337.996+18.93 -> 1356.926 | L75: 39.44 | N75: 8.05 | O75: 12.3 | V75: =SUM(C75:U75) -> 2898.15 | X75: 59.79 | Y75: 2838.36
B76: Total km líneas | C76: =SUM(C73:C75) -> 6288.012084 | D76: 3352.405516 | E76: 971.6172245 | F76: 1929.098 | G76: 2434.749748 | H76: 1616.455 | I76: 573.0028104 | J76: 4141.268476 | K76: 7860.608506 | L76: 4823.207627 | M76: 0 | N76: 3210.524314 | O76: 2775.048287 | P76: 257.2570595 | Q76: 2179.605094 | R76: 0 | S76: 831.9818771 | T76: 494.7990904 | U76: 1360.936285 | V76: 45100.577 | X76: =SUM(X73:X75) -> 41555.024 | Y76: =SUM(Y73:Y75) -> 3545.553
B77: =CONCATENATE("Δ" & $B$71 & "/" & $B$71-1) -> Δ2022/2021 | C77: =(C76/C62-1)*100 -> 4.098971918 | D77: =(D76/D62-1)*100 -> 0 | E77: 0 | F77: 0.01648710584 | G77: 0.4093493396 | H77: 2.421043628 | I77: 1.482559049 | J77: 0.003622209818 | K77: 0 | L77: 0 | N77: 0 | O77: 0 | P77: 0 | Q77: 0 | S77: 0 | T77: 0 | U77: 0 | V77: =(V76/V62-1)*100 -> 0.6799043495 | X77: =(X76/X62-1)*100 -> 0.6443413887 | Y77: 1.098594963
B78: Posiciones 400 kV | C78: =197+13 -> 210 | D78: =108+4 -> 112 | E78: 55 | G78: =187+2 -> 189 | I78: 15 | J78: =123+5 -> 128 | K78: =247+4 -> 251 | L78: 147 | N78: =124+4 -> 128 | O78: 75 | P78: 8 | Q78: =109+3 -> 112 | S78: =76+2 -> 78 | T78: 30 | U78: 90 | V78: =SUM(C78:U78)+W78 -> 1628 | X78: =V78-F78-H78-M78-R78 -> 1628 | Y78: =F78+H78+M78+R78 -> 0
B79: Posiciones 220 kV | C79: =473+7 -> 480 | D79: =223+2 -> 225 | E79: 44 | F79: 125 | G79: =323+9 -> 332 | H79: =83+14 -> 97 | I79: =49+3 -> 52 | J79: =144+4 -> 148 | K79: =252+2 -> 254 | L79: =605+1 -> 606 | M79: 0 | N79: =103+3 -> 106 | O79: =235+1 -> 236 | P79: 29 | Q79: 551 | R79: 0 | S79: 44 | T79: 51 | U79: 149 | V79: =SUM(C79:U79)+W79 -> 3536 | W79: 7 | X79: =V79-F79-H79-M79-R79 -> 3314 | Y79: =F79+H79+M79+R79 -> 222
B80: Posiciones <220 kV | F80: =568+8 -> 576 | H80: =570+18 -> 588 | L80: 3 | N80: 2 | O80: 1 | V80: 1170 | X80: =V80-F80-H80-M80-R80 -> 6 | Y80: =F80+H80+M80+R80 -> 1164
B81: Total posiciones | C81: =SUM(C78:C80) -> 690 | D81: =SUM(D78:D80) -> 337 | E81: 99 | F81: 701 | G81: 521 | H81: 685 | I81: 67 | J81: 276 | K81: 505 | L81: 756 | M81: 0 | N81: 236 | O81: 312 | P81: 37 | Q81: 663 | R81: 0 | S81: 122 | T81: 81 | U81: 239 | V81: =SUM(V78:V80) -> 6334 | W81: =SUM(W78:W80) -> 7 | X81: =SUM(X78:X80) -> 4948 | Y81: 1386
B82: =CONCATENATE("Δ" & $B$71 & "/" & $B$71-1) -> Δ2022/2021 | C82: =(C81/C67-1)*100 -> 2.985074627 | D82: =(D81/D67-1)*100 -> 1.812688822 | E82: 0 | F82: 1.154401154 | G82: 2.156862745 | H82: 4.900459418 | I82: 4.6875 | J82: 3.370786517 | K82: 1.20240481 | L82: 0.1324503311 | N82: 3.056768559 | O82: 0.3215434084 | P82: 0 | Q82: 0.4545454545 | S82: 1.666666667 | T82: 0 | U82: 0 | V82: =(V81/V67-1)*100 -> 1.751004016 | W82: 0 | X82: 1.414224226 | Y82: 2.971768202
B83: Transformadores | C83: 15020 | D83: 5056 | E83: 1300 | F83: 3838 | G83: 8950 | H83: =3880+125 -> 4005 | I83: 2100 | J83: =1200+600 -> 1800 | K83: 6131 | L83: 11500 | N83: 3025 | O83: 5700 | P83: 600 | Q83: 11100 | S83: 3450 | T83: 1600 | U83: 5100 | V83: =SUM(C83:U83)+W83 -> 91175 | W83: 900 | X83: =V83-F83-H83-M83-R83 -> 83332 | Y83: =F83+H83+M83+R83 -> 7843
B84: =CONCATENATE("Δ" & $B$71 & "/" & $B$71-1) -> Δ2022/2021 | C84: =(C83/C69-1)*100 -> 0 | D84: =(D83/D69-1)*100 -> 0 | E84: 0 | F84: 0 | G84: 0 | H84: 3.221649485 | I84: 0 | J84: 50 | K84: 0 | L84: 0 | N84: 0 | O84: 0 | P84: 0 | Q84: 0 | S84: 0 | T84: 0 | U84: 0 | V84: =(V83/V69-1)*100 -> 0.8015478165 | W84: 0 | X84: 0.7252332834 | Y84: 1.619590568

Sheet EVOLUCION_RdT (hidden)
B2: evolución líneas | C2: Andalucía | D2: Aragón | E2: Asturias | F2: Baleares | G2: C. Valenciana | H2: Canarias | I2: Cantabria | J2: Castilla-La Mancha | K2: Castilla y León | L2: Cataluña | M2: Ceuta | N2: Extremadura | O2: Galicia | P2: La Rioja | Q2: Madrid | R2: Melilla | S2: Murcia | T2: Navarra | U2: País Vasco | V2: TOTAL | W2: MÓVILES | X2: Resto nacional
A3: 2017 | B3: líneas | C3: =datos_RdT!C6 -> 5968.571084 | D3: =datos_RdT!D6 -> 3305.572516 | E3: =datos_RdT!E6 -> 961.0132245 | F3: =datos_RdT!F6 -> 1809.219 | G3: =datos_RdT!G6 -> 2380.142748 | H3: =datos_RdT!H6 -> 1355.097 | I3: =datos_RdT!I6 -> 564.6318104 | J3: =datos_RdT!J6 -> 4137.358476 | K3: =datos_RdT!K6 -> 7759.127506 | L3: =datos_RdT!L6 -> 4805.504627 | N3: =datos_RdT!N6 -> 3163.049314 | O3: =datos_RdT!O6 -> 2683.444287 | P3: =datos_RdT!P6 -> 257.2570595 | Q3: =datos_RdT!Q6 -> 2179.399094 | S3: =datos_RdT!S6 -> 831.9818771 | T3: =datos_RdT!T6 -> 494.7990904 | U3: =datos_RdT!U6 -> 1359.262285 | V3: =SUM(C3:U3) -> 44015.431 | X3: =V3-Q3 -> 41836.03191
A4: 2017 | B4: posiciones | C4: =datos_RdT!C11 -> 633 | D4: =datos_RdT!D11 -> 314 | E4: =datos_RdT!E11 -> 93 | F4: =datos_RdT!F11 -> 656 | G4: =datos_RdT!G11 -> 481 | H4: =datos_RdT!H11 -> 495 | I4: =datos_RdT!I11 -> 65 | J4: =datos_RdT!J11 -> 250 | K4: =datos_RdT!K11 -> 476 | L4: =datos_RdT!L11 -> 743 | N4: =datos_RdT!N11 -> 191 | O4: =datos_RdT!O11 -> 294 | P4: =datos_RdT!P11 -> 38 | Q4: =datos_RdT!Q11 -> 630 | S4: =datos_RdT!S11 -> 117 | T4: =datos_RdT!T11 -> 78 | U4: =datos_RdT!U11 -> 230 | V4: =SUM(C4:U4)+W4 -> 5791 | W4: =datos_RdT!W11 -> 7 | X4: =V4-Q4 -> 5161
A5: 2017 | B5: transformadores | C5: =datos_RdT!C13 -> 14420 | D5: =datos_RdT!D13 -> 4574 | E5: =datos_RdT!E13 -> 1300 | F5: =datos_RdT!F13 -> 3463 | G5: =datos_RdT!G13 -> 8950 | H5: =datos_RdT!H13 -> 2810 | I5: =datos_RdT!I13 -> 2100 | J5: =datos_RdT!J13 -> 1200 | K5: =datos_RdT!K13 -> 6131 | L5: =datos_RdT!L13 -> 9800 | N5: =datos_RdT!N13 -> 2800 | O5: =datos_RdT!O13 -> 5700 | P5: =datos_RdT!P13 -> 600 | Q5: =datos_RdT!Q13 -> 12370 | S5: =datos_RdT!S13 -> 3450 | T5: =datos_RdT!T13 -> 1600 | U5: =datos_RdT!U13 -> 4800 | V5: =SUM(C5:U5)+W5 -> 86968 | W5: =datos_RdT!W13 -> 900 | X5: =V5-Q5 -> 74598
A6: 2017 | B6: líneas | C6: =datos_RdT!C7/100 -> 0 | D6: =datos_RdT!D7/100 -> 0.00293698898 | E6: =datos_RdT!E7/100 -> 0 | F6: =datos_RdT!F7/100 -> 0.004597601585 | G6: =datos_RdT!G7/100 -> 0.006414024684 | H6: =datos_RdT!H7/100 -> 0.0006882470009 | I6: =datos_RdT!I7/100 -> 0 | J6: =datos_RdT!J7/100 -> 0.008354702501 | K6: =datos_RdT!K7/100 -> 0.006167149558 | L6: =datos_RdT!L7/100 -> 0.0001392347318 | N6: =datos_RdT!N7/100 -> 0 | O6: =datos_RdT!O7/100 -> 0 | P6: =datos_RdT!P7/100 -> 0 | Q6: =datos_RdT!Q7/100 -> 0.01238121277 | S6: =datos_RdT!S7/100 -> 0 | T6: =datos_RdT!T7/100 -> 0 | U6: =datos_RdT!U7/100 -> 8.387605774e-05 | V6: =datos_RdT!V7/100 -> 0.003267133699
A7: 2017 | B7: posiciones | C7: =datos_RdT!C12/100 -> 0 | D7: =datos_RdT!D12/100 -> 0.00641025641 | E7: =datos_RdT!E12/100 -> 0 | F7: =datos_RdT!F12/100 -> 0.009230769231 | G7: =datos_RdT!G12/100 -> 0.03663793103 | H7: =datos_RdT!H12/100 -> 0.1123595506 | I7: =datos_RdT!I12/100 -> 0 | J7: =datos_RdT!J12/100 -> 0.008064516129 | K7: =datos_RdT!K12/100 -> 0.0303030303 | L7: =datos_RdT!L12/100 -> 0.01088435374 | N7: =datos_RdT!N12/100 -> 0 | O7: =datos_RdT!O12/100 -> 0 | P7: =datos_RdT!P12/100 -> 0 | Q7: =datos_RdT!Q12/100 -> 0.001589825119 | S7: =datos_RdT!S12/100 -> 0 | T7: =datos_RdT!T12/100 -> 0.01298701299 | U7: =datos_RdT!U12/100 -> 0.008771929825 | V7: =datos_RdT!V12/100 -> 0.01810829817
A8: 2017 | B8: transformadores | C8: =datos_RdT!C14/100 -> 0 | D8: =datos_RdT!D14/100 -> 0 | E8: =datos_RdT!E14/100 -> 0 | F8: =datos_RdT!F14/100 -> 0 | G8: =datos_RdT!G14/100 -> 0 | H8: =datos_RdT!H14/100 -> 0.2488888889 | I8: =datos_RdT!I14/100 -> 0 | J8: =datos_RdT!J14/100 -> 0 | K8: =datos_RdT!K14/100 -> 0 | L8: =datos_RdT!L14/100 -> 0 | N8: =datos_RdT!N14/100 -> 0 | O8: =datos_RdT!O14/100 -> 0 | P8: =datos_RdT!P14/100 -> 0 | Q8: =datos_RdT!Q14/100 -> 0 | S8: =datos_RdT!S14/100 -> 0 | T8: =datos_RdT!T14/100 -> 0 | U8: =datos_RdT!U14/100 -> 0 | V8: =datos_RdT!V14/100 -> 0.0064808814
A9: 2018 | B9: líneas | C9: =datos_RdT!C20 -> 5983.837084 | D9: =datos_RdT!D20 -> 3305.572516 | E9: =datos_RdT!E20 -> 961.0132245 | F9: =datos_RdT!F20 -> 1853.942 | G9: =datos_RdT!G20 -> 2406.686748 | H9: =datos_RdT!H20 -> 1481.836 | I9: =datos_RdT!I20 -> 564.6318104 | J9: =datos_RdT!J20 -> 4137.358476 | K9: =datos_RdT!K20 -> 7789.602506 | L9: =datos_RdT!L20 -> 4810.482627 | N9: =datos_RdT!N20 -> 3163.049314 | O9: =datos_RdT!O20 -> 2683.444287 | P9: =datos_RdT!P20 -> 257.2570595 | Q9: =datos_RdT!Q20 -> 2179.399094 | S9: =datos_RdT!S20 -> 831.9818771 | T9: =datos_RdT!T20 -> 494.7990904 | U9: =datos_RdT!U20 -> 1359.262285 | V9: =SUM(C9:U9) -> 44264.156 | X9: =V9-Q9 -> 42084.75691
A10: 2018 | B10: posiciones | C10: =datos_RdT!C25 -> 646 | D10: =datos_RdT!D25 -> 316 | E10: =datos_RdT!E25 -> 94 | F10: =datos_RdT!F25 -> 657 | G10: =datos_RdT!G25 -> 481 | H10: =datos_RdT!H25 -> 564 | I10: =datos_RdT!I25 -> 65 | J10: =datos_RdT!J25 -> 251 | K10: =datos_RdT!K25 -> 490 | L10: =datos_RdT!L25 -> 764 | N10: =datos_RdT!N25 -> 192 | O10: =datos_RdT!O25 -> 294 | P10: =datos_RdT!P25 -> 38 | Q10: =datos_RdT!Q25 -> 630 | S10: =datos_RdT!S25 -> 117 | T10: =datos_RdT!T25 -> 78 | U10: =datos_RdT!U25 -> 231 | V10: =SUM(C10:U10)+W10 -> 5915 | W10: =datos_RdT!W25 -> 7 | X10: =V10-Q10 -> 5285
A11: 2018 | B11: transformadores | C11: =datos_RdT!C27 -> 14420 | D11: =datos_RdT!D27 -> 5056 | E11: =datos_RdT!E27 -> 1300 | F11: =datos_RdT!F27 -> 3463 | G11: =datos_RdT!G27 -> 8950 | H11: =datos_RdT!H27 -> 3310 | I11: =datos_RdT!I27 -> 2100 | J11: =datos_RdT!J27 -> 1200 | K11: =datos_RdT!K27 -> 6131 | L11: =datos_RdT!L27 -> 11500 | N11: =datos_RdT!N27 -> 2800 | O11: =datos_RdT!O27 -> 5700 | P11: =datos_RdT!P27 -> 600 | Q11: =datos_RdT!Q27 -> 12370 | S11: =datos_RdT!S27 -> 3450 | T11: =datos_RdT!T27 -> 1600 | U11: =datos_RdT!U27 -> 5000 | V11: =SUM(C11:U11)+W11 -> 89850 | W11: =datos_RdT!W27 -> 900 | X11: =V11-Q11 -> 77480
A12: 2018 | B12: líneas | C12: =(C9/C3-1) -> 0.002557731119 | D12: =(D9/D3-1) -> 0 | E12: =(E9/E3-1) -> 0 | F12: =(F9/F3-1) -> 0.02471950604 | G12: 0.01115227228 | H12: 0.09352762201 | I12: 0 | J12: 0 | K12: 0.003927632324 | L12: 0.001035895371 | N12: 0 | O12: 2.220446049e-16 | P12: 0 | Q12: 0 | S12: 0 | T12: 0 | U12: 0 | V12: 0.005650859127
A13: 2018 | B13: posiciones | C13: =(C10/C4-1) -> 0.0205371248 | D13: =(D10/D4-1) -> 0.006369426752 | E13: 0.01075268817 | F13: 0.001524390244 | G13: 0 | H13: 0.1393939394 | I13: 0 | J13: 0.004 | K13: 0.02941176471 | L13: 0.02826379542 | N13: 0.005235602094 | O13: 0 | P13: 0 | Q13: 0 | S13: 0 | T13: 0 | U13: 0.004347826087 | V13: 0.02141253669
A14: 2018 | B14: transformadores | C14: =(C11/C5-1) -> 0 | D14: =(D11/D5-1) -> 0.1053782247 | E14: 0 | F14: 0 | G14: 0 | H14: 0.1779359431 | I14: 0 | K14: 0 | L14: 0.1734693878 | N14: 0 | O14: 0 | Q14: 0 | S14: 0 | T14: 0 | U14: 0.04166666667 | V14: 0.0331386257
A15: 2019 | B15: líneas | C15: =datos_RdT!C34 -> 6032.543084 | D15: =datos_RdT!D34 -> 3323.599516 | E15: =datos_RdT!E34 -> 961.0132245 | F15: =datos_RdT!F34 -> 1873.3214 | G15: =datos_RdT!G34 -> 2407.644748 | H15: =datos_RdT!H34 -> 1549.192 | I15: =datos_RdT!I34 -> 564.6318104 | J15: =datos_RdT!J34 -> 4137.358476 | K15: =datos_RdT!K34 -> 7829.004506 | L15: =datos_RdT!L34 -> 4811.437627 | N15: =datos_RdT!N34 -> 3145.478314 | O15: =datos_RdT!O34 -> 2686.764287 | P15: =datos_RdT!P34 -> 257.2570595 | Q15: =datos_RdT!Q34 -> 2179.549094 | S15: =datos_RdT!S34 -> 831.9818771 | T15: =datos_RdT!T34 -> 494.7990904 | U15: =datos_RdT!U34 -> 1360.856285 | V15: =SUM(C15:U15) -> 44446.4324 | X15: =V15-Q15 -> 42266.88331
A16: 2019 | B16: posiciones | C16: =datos_RdT!C39 -> 664 | D16: =datos_RdT!D39 -> 324 | E16: =datos_RdT!E39 -> 94 | F16: =datos_RdT!F39 -> 691 | G16: =datos_RdT!G39 -> 508 | H16: =datos_RdT!H39 -> 581 | I16: =datos_RdT!I39 -> 65 | J16: =datos_RdT!J39 -> 256 | K16: =datos_RdT!K39 -> 505 | L16: =datos_RdT!L39 -> 769 | N16: =datos_RdT!N39 -> 198 | O16: =datos_RdT!O39 -> 307 | P16: =datos_RdT!P39 -> 38 | Q16: =datos_RdT!Q39 -> 636 | S16: =datos_RdT!S39 -> 119 | T16: =datos_RdT!T39 -> 78 | U16: =datos_RdT!U39 -> 231 | V16: =SUM(C16:U16)+W16 -> 6071 | W16: =datos_RdT!W39 -> 7 | X16: =V16-Q16 -> 5435
A17: 2019 | B17: transformadores | C17: =datos_RdT!C41 -> 15020 | D17: =datos_RdT!D41 -> 5056 | E17: =datos_RdT!E41 -> 1300 | F17: =datos_RdT!F41 -> 3838 | G17: =datos_RdT!G41 -> 8950 | H17: =datos_RdT!H41 -> 3470 | I17: =datos_RdT!I41 -> 2100 | J17: =datos_RdT!J41 -> 1200 | K17: =datos_RdT!K41 -> 6131 | L17: =datos_RdT!L41 -> 11500 | N17: =datos_RdT!N41 -> 2800 | O17: =datos_RdT!O41 -> 5700 | P17: =datos_RdT!P41 -> 600 | Q17: =datos_RdT!Q41 -> 11100 | S17: =datos_RdT!S41 -> 3450 | T17: =datos_RdT!T41 -> 1600 | U17: =datos_RdT!U41 -> 5100 | V17: =SUM(C17:U17)+W17 -> 89815 | W17: =datos_RdT!W41 -> 900 | X17: =V17-Q17 -> 78715
A18: 2019 | B18: líneas | C18: =(C15/C9-1) -> 0.00813959326 | D18: =(D15/D9-1) -> 0.005453518237 | E18: 0 | F18: 0.01045307782 | G18: 0.0003980576203 | H18: 0.04545442276 | I18: 0 | J18: 0 | K18: 0.005058281211 | L18: 0.0001985247789 | N18: -0.005555082534 | O18: 0.001237215923 | P18: 0 | Q18: 6.882631107e-05 | S18: 0 | T18: 0 | U18: 0.001172694938 | V18: 0.004117923315
A19: 2019 | B19: posiciones | C19: =(C16/C10-1) -> 0.02786377709 | D19: =(D16/D10-1) -> 0.0253164557 | E19: 0 | F19: 0.05175038052 | G19: 0.05613305613 | H19: 0.03014184397 | I19: 0 | J19: 0.01992031873 | K19: 0.0306122449 | L19: 0.006544502618 | N19: 0.03125 | O19: 0.04421768707 | P19: 0 | Q19: 0.009523809524 | S19: 0.01709401709 | T19: 0 | U19: 0 | V19: 0.02637362637
A20: 2019 | B20: transformadores | C20: =(C17/C11-1) -> 0.04160887656 | D20: =(D17/D11-1) -> 0 | E20: 0 | F20: 0.1082876119 | G20: 0 | H20: 0.04833836858 | I20: 0 | J20: =(J17/J11-1) -> 0 | K20: 0 | L20: 0 | N20: 0 | O20: 0 | Q20: -0.1026677445 | S20: 0 | T20: 0 | U20: 0.02 | V20: -0.0003895381191
A21: 2020 | B21: líneas | C21: =datos_RdT!C48 -> 6032.765084 | D21: =datos_RdT!D48 -> 3332.192516 | E21: =datos_RdT!E48 -> 971.2792245 | F21: =datos_RdT!F48 -> 1928.78 | G21: =datos_RdT!G48 -> 2407.644748 | H21: =datos_RdT!H48 -> 1560.987 | I21: =datos_RdT!I48 -> 564.6318104 | J21: =datos_RdT!J48 -> 4141.118476 | K21: =datos_RdT!K48 -> 7829.004506 | L21: =datos_RdT!L48 -> 4823.207627 | N21: =datos_RdT!N48 -> 3155.458314 | O21: =datos_RdT!O48 -> 2691.510287 | P21: =datos_RdT!P48 -> 257.2570595 | Q21: =datos_RdT!Q48 -> 2179.605094 | S21: =datos_RdT!S48 -> 831.9818771 | T21: =datos_RdT!T48 -> 494.7990904 | U21: =datos_RdT!U48 -> 1360.856285 | V21: =SUM(C21:U21) -> 44563.079 | X21: =V21-Q21 -> 42383.47391
A22: 2020 | B22: posiciones | C22: =datos_RdT!C53 -> 654 | D22: =datos_RdT!D53 -> 323 | E22: =datos_RdT!E53 -> 99 | F22: =datos_RdT!F53 -> 684 | G22: =datos_RdT!G53 -> 504 | H22: =datos_RdT!H53 -> 623 | I22: =datos_RdT!I53 -> 63 | J22: =datos_RdT!J53 -> 261 | K22: =datos_RdT!K53 -> 498 | L22: =datos_RdT!L53 -> 750 | N22: =datos_RdT!N53 -> 201 | O22: =datos_RdT!O53 -> 296 | P22: =datos_RdT!P53 -> 37 | Q22: =datos_RdT!Q53 -> 660 | S22: =datos_RdT!S53 -> 118 | T22: =datos_RdT!T53 -> 80 | U22: =datos_RdT!U53 -> 233 | V22: =SUM(C22:U22)+W22 -> 6091 | W22: =datos_RdT!W53 -> 7 | X22: =V22-Q22 -> 5431
A23: 2020 | B23: transformadores | C23: =datos_RdT!C55 -> 15020 | D23: =datos_RdT!D55 -> 5056 | E23: =datos_RdT!E55 -> 1300 | F23: =datos_RdT!F55 -> 3838 | G23: =datos_RdT!G55 -> 8950 | H23: =datos_RdT!H55 -> 3630 | I23: =datos_RdT!I55 -> 2100 | J23: =datos_RdT!J55 -> 1200 | K23: =datos_RdT!K55 -> 6131 | L23: =datos_RdT!L55 -> 11500 | N23: =datos_RdT!N55 -> 2800 | O23: =datos_RdT!O55 -> 5700 | P23: =datos_RdT!P55 -> 600 | Q23: =datos_RdT!Q55 -> 11100 | S23: =datos_RdT!S55 -> 3450 | T23: =datos_RdT!T55 -> 1600 | U23: =datos_RdT!U55 -> 5100 | V23: =SUM(C23:U23)+W23 -> 89975 | W23: =datos_RdT!W55 -> 900 | X23: =V23-Q23 -> 78875
A24: 2020 | B24: líneas | C24: =(C21/C15-1) -> 3.680040024e-05 | D24: =(D21/D15-1) -> 0.002585449889 | E24: 0.01068247527 | F24: 0.02960442346 | G24: -2.220446049e-16 | H24: 0.00761364634 | I24: 0 | J24: 0.0009087924148 | K24: 0 | L24: 0.002446254303 | N24: 0.003172808394 | O24: 0.001766437057 | P24: 0 | Q24: 2.569338775e-05 | S24: 0 | T24: 0 | U24: 0 | V24: 0.002624431112
A25: 2020 | B25: posiciones | C25: =(C22/C16-1) -> -0.01506024096 | D25: =(D22/D16-1) -> -0.003086419753 | E25: 0.05319148936 | F25: -0.01013024602 | G25: -0.007874015748 | H25: 0.07228915663 | I25: -0.03076923077 | J25: 0.01953125 | K25: -0.01386138614 | L25: -0.02470741222 | N25: 0.01515151515 | O25: -0.03583061889 | P25: -0.02631578947 | Q25: 0.03773584906 | S25: -0.008403361345 | T25: 0.02564102564 | U25: 0.008658008658 | V25: 0.003294350189
A26: 2020 | B26: transformadores | C26: =(C23/C17-1) -> 0 | D26: =(D23/D17-1) -> 0 | E26: 0 | F26: 0 | G26: 0 | H26: 0.04610951009 | I26: 0 | J26: 0 | K26: 0 | L26: 0 | N26: 0 | O26: 0 | P26: 0 | Q26: 0 | S26: 0 | T26: 0 | U26: 0 | V26: 0.001781439626
A27: 2021 | B27: líneas | C27: =datos_RdT!C62 -> 6040.417084 | D27: =datos_RdT!D62 -> 3352.405516 | E27: =datos_RdT!E62 -> 971.6172245 | F27: =datos_RdT!F62 -> 1928.78 | G27: =datos_RdT!G62 -> 2424.823748 | H27: =datos_RdT!H62 -> 1578.245 | I27: =datos_RdT!I62 -> 564.6318104 | J27: =datos_RdT!J62 -> 4141.118476 | K27: =datos_RdT!K62 -> 7860.608506 | L27: =datos_RdT!L62 -> 4823.207627 | M27: =datos_RdT!M62 -> 0 | N27: =datos_RdT!N62 -> 3210.524314 | O27: =datos_RdT!O62 -> 2775.048287 | P27: =datos_RdT!P62 -> 257.2570595 | Q27: =datos_RdT!Q62 -> 2179.605094 | S27: =datos_RdT!S62 -> 831.9818771 | T27: =datos_RdT!T62 -> 494.7990904 | U27: =datos_RdT!U62 -> 1360.936285 | V27: 44796.007 | X27: =V27-Q27 -> 42616.40191
A28: 2021 | B28: posiciones | C28: =datos_RdT!C67 -> 670 | D28: =datos_RdT!D67 -> 331 | E28: =datos_RdT!E67 -> 99 | F28: =datos_RdT!F67 -> 693 | G28: =datos_RdT!G67 -> 510 | H28: =datos_RdT!H67 -> 653 | I28: =datos_RdT!I67 -> 64 | J28: =datos_RdT!J67 -> 267 | K28: =datos_RdT!K67 -> 499 | L28: =datos_RdT!L67 -> 755 | M28: =datos_RdT!M67 -> 0 | N28: =datos_RdT!N67 -> 229 | O28: =datos_RdT!O67 -> 311 | P28: =datos_RdT!P67 -> 37 | Q28: =datos_RdT!Q67 -> 660 | S28: =datos_RdT!S67 -> 120 | T28: =datos_RdT!T67 -> 81 | U28: =datos_RdT!U67 -> 239 | V28: =SUM(C28:U28)+W28 -> 6225 | W28: =datos_RdT!W67 -> 7 | X28: =V28-Q28 -> 5565
A29: 2021 | B29: transformadores | C29: =datos_RdT!C69 -> 15020 | D29: =datos_RdT!D69 -> 5056 | E29: =datos_RdT!E69 -> 1300 | F29: =datos_RdT!F69 -> 3838 | G29: =datos_RdT!G69 -> 8950 | H29: =datos_RdT!H69 -> 3880 | I29: =datos_RdT!I69 -> 2100 | J29: =datos_RdT!J69 -> 1200 | K29: =datos_RdT!K69 -> 6131 | L29: =datos_RdT!L69 -> 11500 | M29: =datos_RdT!M69 -> 0 | N29: =datos_RdT!N69 -> 3025 | O29: =datos_RdT!O69 -> 5700 | P29: =datos_RdT!P69 -> 600 | Q29: =datos_RdT!Q69 -> 11100 | S29: =datos_RdT!S69 -> 3450 | T29: =datos_RdT!T69 -> 1600 | U29: =datos_RdT!U69 -> 5100 | V29: =SUM(C29:U29)+W29 -> 90450 | W29: =datos_RdT!W69 -> 900 | X29: =V29-Q29 -> 79350
A30: 2021 | B30: líneas | C30: =(C27/C21-1) -> 0.001268406758 | D30: =(D27/D21-1) -> 0.006065976051 | E30: 0.000347994677 | F30: 0 | G30: 0.007135188865 | H30: 0.01105582558 | I30: 0 | J30: 0 | K30: 0.004036783984 | L30: 0 | N30: 0.01745103073 | O30: 0.03103759268 | P30: 0 | Q30: 0 | S30: 0 | T30: 0 | U30: 5.878651618e-05 | V30: 0.005226927879
A31: 2021 | B31: posiciones | C31: =(C28/C22-1) -> 0.0244648318 | D31: =(D28/D22-1) -> 0.02476780186 | E31: 0 | F31: 0.01315789474 | G31: 0.0119047619 | H31: 0.0481540931 | I31: 0.01587301587 | J31: 0.02298850575 | K31: 0.002008032129 | L31: 0.006666666667 | N31: 0.1393034826 | O31: 0.05067567568 | P31: 0 | Q31: 0 | S31: 0.01694915254 | T31: 0.0125 | U31: 0.02575107296 | V31: 0.02199967165
A32: 2021 | B32: transformadores | C32: =(C29/C23-1) -> 0 | D32: =(D29/D23-1) -> 0 | E32: 0 | F32: 0 | G32: 0 | H32: 0.06887052342 | I32: 0 | J32: 0 | K32: 0 | L32: 0 | N32: 0.08035714286 | O32: 0 | P32: 0 | Q32: 0 | S32: 0 | T32: 0 | U32: 0 | V32: 0.005279244235
A33: 2022 | B33: líneas | C33: =datos_RdT!C76 -> 6288.012084 | D33: =datos_RdT!D76 -> 3352.405516 | E33: =datos_RdT!E76 -> 971.6172245 | F33: =datos_RdT!F76 -> 1929.098 | G33: =datos_RdT!G76 -> 2434.749748 | H33: =datos_RdT!H76 -> 1616.455 | I33: =datos_RdT!I76 -> 573.0028104 | J33: =datos_RdT!J76 -> 4141.268476 | K33: =datos_RdT!K76 -> 7860.608506 | L33: =datos_RdT!L76 -> 4823.207627 | N33: =datos_RdT!N76 -> 3210.524314 | O33: =datos_RdT!O76 -> 2775.048287 | P33: =datos_RdT!P76 -> 257.2570595 | Q33: =datos_RdT!Q76 -> 2179.605094 | S33: =datos_RdT!S76 -> 831.9818771 | T33: =datos_RdT!T76 -> 494.7990904 | U33: =datos_RdT!U76 -> 1360.936285 | V33: =datos_RdT!V76 -> 45100.577 | X33: =V33-Q33 -> 42920.97191
A34: 2022 | B34: posiciones | C34: =datos_RdT!C81 -> 690 | D34: =datos_RdT!D81 -> 337 | E34: =datos_RdT!E81 -> 99 | F34: =datos_RdT!F81 -> 701 | G34: =datos_RdT!G81 -> 521 | H34: =datos_RdT!H81 -> 685 | I34: =datos_RdT!I81 -> 67 | J34: =datos_RdT!J81 -> 276 | K34: =datos_RdT!K81 -> 505 | L34: =datos_RdT!L81 -> 756 | N34: =datos_RdT!N81 -> 236 | O34: =datos_RdT!O81 -> 312 | P34: =datos_RdT!P81 -> 37 | Q34: =datos_RdT!Q81 -> 663 | S34: =datos_RdT!S81 -> 122 | T34: =datos_RdT!T81 -> 81 | U34: =datos_RdT!U81 -> 239 | V34: =datos_RdT!V81 -> 6334 | W34: =datos_RdT!W81 -> 7 | X34: =V34-Q34 -> 5671
A35: 2022 | B35: transformadores | C35: =datos_RdT!C83 -> 15020 | D35: =datos_RdT!D83 -> 5056 | E35: =datos_RdT!E83 -> 1300 | F35: =datos_RdT!F83 -> 3838 | G35: =datos_RdT!G83 -> 8950 | H35: =datos_RdT!H83 -> 4005 | I35: =datos_RdT!I83 -> 2100 | J35: =datos_RdT!J83 -> 1800 | K35: =datos_RdT!K83 -> 6131 | L35: =datos_RdT!L83 -> 11500 | N35: =datos_RdT!N83 -> 3025 | O35: =datos_RdT!O83 -> 5700 | P35: =datos_RdT!P83 -> 600 | Q35: =datos_RdT!Q83 -> 11100 | S35: =datos_RdT!S83 -> 3450 | T35: =datos_RdT!T83 -> 1600 | U35: =datos_RdT!U83 -> 5100 | V35: =datos_RdT!V83 -> 91175 | W35: =datos_RdT!W83 -> 900 | X35: =V35-Q35 -> 80075
A36: 2022 | B36: líneas | C36: =(C33/C27-1) -> 0.04098971918 | D36: =(D33/D27-1) -> 0 | E36: 0 | F36: 0.0001648710584 | G36: 0.004093493396 | H36: 0.02421043628 | I36: 0.01482559049 | J36: 3.622209818e-05 | K36: 0 | L36: 0 | N36: 0 | O36: 0 | P36: 0 | Q36: 0 | S36: 0 | T36: 0 | U36: 0 | V36: 0.006799043495
A37: 2022 | B37: posiciones | C37: =(C34/C28-1) -> 0.02985074627 | D37: =(D34/D28-1) -> 0.01812688822 | E37: 0 | F37: 0.01154401154 | G37: 0.02156862745 | H37: 0.04900459418 | I37: 0.046875 | J37: 0.03370786517 | K37: 0.0120240481 | L37: 0.001324503311 | N37: 0.03056768559 | O37: 0.003215434084 | P37: 0 | Q37: 0.004545454545 | S37: 0.01666666667 | T37: 0 | U37: 0 | V37: 0.01751004016
A38: 2022 | B38: transformadores | C38: =(C35/C29-1) -> 0 | D38: =(D35/D29-1) -> 0 | E38: 0 | F38: 0 | G38: 0 | H38: 0.03221649485 | I38: 0 | J38: 0.5 | K38: 0 | L38: 0 | N38: 0 | O38: 0 | P38: 0 | Q38: 0 | S38: 0 | T38: 0 | U38: 0 | V38: 0.008015478165

Sheet Año (hidden)
B2: 2017
B3: 2018
B4: 2019
B5: 2020
B6: 2021
B7: 2022
